fUST/lending_fUST_20251113
["ID","MTS","AMOUNT","RATE_DAILY","PERIOD"]
[393839224,1763029849360,-300.0,0.00034629,30]
[393839225,1763029849369,-300.0,0.00034629,30]
[393839226,1763029849378,-259.01939536,0.00034734,2]
[393839227,1763029849387,-3125.0,0.0003516,120]
[393839228,1763029849396,-2480.14159388,0.00035181,3]
[393839229,1763029849405,-530.07,0.000354,14]
[393839230,1763029849414,-162.85,0.000354,7]
[393839231,1763029849423,-500.0,0.00035616,30]
[393839232,1763029849432,-755.16729179,0.00035702,2]
[393839233,1763029849441,-500.0,0.0003589,30]
[393839234,1763029849450,-283.22089418,0.00035925,120]
[393839235,1763029849459,-862.008714,0.00035948,2]
[393839236,1763029849468,-181.8809072,0.00036,120]
[393839237,1763029849477,-313.0,0.0003615,2]
[393839238,1763029849487,-500.0,0.00036164,30]
[393839239,1763029849496,-150.0,0.00036323,2]
[393839240,1763029849505,-500.0,0.00036438,30]
[393839241,1763029849515,-500.0,0.00036712,30]
[393839242,1763029849527,-303.29771588,0.000368,120]
[393839243,1763029849537,-1060.36975501,0.0003686,2]
[393839244,1763029849546,-5354.6,0.000369,14]
[393839245,1763029849555,-500.0,0.00036986,30]
[393839246,1763029849564,-2036.60048023,0.00037,2]
[393839247,1763029849574,-4228.0846083,0.00037,120]
[393839248,1763029849583,-596.8741947,0.0003722,30]
[393839249,1763029849592,-197.67012425,0.00037235,3]
[393839250,1763029849601,-542.0,0.00037235,30]
[393839251,1763029849611,-13973.87073213,0.00037235,120]
[393839252,1763029849620,-1278.616953,0.00037235,10]
[393839253,1763029849629,-157.784083,0.00037235,10]
[393839254,1763029849638,-500.0,0.0003726,30]
[393839255,1763029849647,-1916.33340737,0.00037424,2]
[393839256,1763029849656,-164.90030715,0.00037454,2]
[393839257,1763029849665,-500.0,0.00037534,30]
[393839258,1763029849674,-500.0,0.00037808,30]
[393839259,1763029849683,-500.0,0.00038082,30]
[393839260,1763029849691,-500.0,0.00038356,30]
[393839261,1763029849700,-151.0,0.00038356,120]
[393839262,1763029849709,-151.0,0.00038356,120]
[393839263,1763029849718,-151.0,0.00038356,120]
[393839264,1763029849727,-151.0,0.00038356,120]
[393839265,1763029849736,-151.0,0.00038356,120]
[393839266,1763029849745,-151.0,0.00038356,120]
[393839267,1763029849754,-151.0,0.00038356,120]
[393839268,1763029849764,-151.0,0.00038356,120]
[393839269,1763029849772,-151.0,0.00038356,120]
[393839270,1763029849782,-151.0,0.00038356,120]
[393839271,1763029849791,-151.0,0.00038356,120]
[393839272,1763029849800,-151.0,0.00038356,120]
[393839273,1763029849809,-151.0,0.00038356,120]
[393839274,1763029849818,-151.0,0.00038356,120]
[393839275,1763029849827,-151.0,0.00038356,120]
[393839276,1763029849836,-151.0,0.00038356,120]
[393839277,1763029849845,-183.699531,0.00038356,120]
[393839278,1763029849859,-500.0,0.0003863,30]
[393839279,1763029849868,-755.92245908,0.00038714,2]
[393839280,1763029849877,-500.0,0.00038904,30]
[393839281,1763029849886,-212.60338779,0.00039,120]
[393839282,1763029849896,-170.0,0.00039,120]
[393839283,1763029849906,-500.0,0.00039178,30]
[393839284,1763029849916,-500.0,0.00039452,30]
[393839285,1763029849928,-162.202445,0.00039654,2]
[393839286,1763029849937,-1000.0,0.0004,120]
[393839287,1763029849946,-5354.6,0.0004,14]
[393839288,1763029849956,-3125.0,0.00040183,120]
[393839289,1763029849965,-257.0,0.0004032,54]
[393839290,1763029849974,-1000.0,0.00041,120]
[393839291,1763029849984,-170.0,0.00041,120]
[393839292,1763029849994,-170.0,0.00041,120]
[393839293,1763029850003,-170.0,0.00041,120]
[393839294,1763029850013,-500.0,0.00041096,7]
[393839295,1763029850022,-151.0,0.00041096,7]
[393839296,1763029850032,-151.0,0.00041096,7]
[393839297,1763029850041,-151.0,0.00041096,7]
[393839298,1763029850050,-151.0,0.00041096,7]
[393839299,1763029850060,-151.0,0.00041096,7]
[393839300,1763029850069,-151.0,0.00041096,7]
[393839301,1763029850078,-500.0,0.00041096,7]
[393839302,1763029850088,-500.0,0.00041096,7]
[393839303,1763029850098,-500.0,0.00041096,7]
[393839304,1763029850107,-500.0,0.00041096,7]
[393839305,1763029850117,-500.0,0.00041096,7]
[393839306,1763029850126,-500.0,0.00041096,7]
[393839307,1763029850136,-500.0,0.00041096,7]
[393839308,1763029850145,-500.0,0.00041096,7]
[393839309,1763029850154,-500.0,0.00041096,7]
[393839310,1763029850163,-233.06655186,0.00041096,2]
[393839311,1763029850173,-1633.0,0.00041096,2]
[393839312,1763029850183,-898.0,0.00041096,2]
[393839313,1763029850192,-500.0,0.00041151,7]
[393839314,1763029850201,-199.01412206,0.00041151,7]
[393839315,1763029850210,-200.56032654,0.00041151,7]
[393839316,1763029850219,-151.0,0.00041151,7]
[393839317,1763029850228,-199.42538137,0.00041151,7]
[393839318,1763029850238,-151.0,0.00041151,7]
[393839319,1763029850248,-236.40508137,0.00041151,7]
[393839320,1763029850258,-500.0,0.00041151,7]
[393839321,1763029850268,-500.0,0.00041151,7]
[393839322,1763029850277,-500.0,0.00041151,7]
[393839323,1763029850287,-500.0,0.00041151,7]
[393839324,1763029850296,-500.0,0.00041151,7]
[393839325,1763029850305,-500.0,0.00041151,7]
[393839326,1763029850314,-500.0,0.00041151,7]
[393839327,1763029850323,-500.0,0.00041151,7]
[393839328,1763029850332,-500.0,0.00041151,7]
[393839329,1763029850342,-1633.0,0.00041151,2]
[393839330,1763029850351,-898.0,0.00041151,2]
[393839331,1763029850360,-500.0,0.00041206,7]
[393839332,1763029850369,-283.72004059,0.00041206,7]
[393839333,1763029850379,-198.48816271,0.00041206,7]
[393839334,1763029850388,-500.0,0.00041206,7]
[393839335,1763029850398,-500.0,0.00041206,7]
[393839336,1763029850541,-500.0,0.00041206,7]
[393839337,1763029850550,-502.12150638,0.00041206,7]
[393839338,1763029850560,-500.0,0.00041206,7]
[393839339,1763029850569,-155.15385215,0.00041206,7]
[393839340,1763029850578,-500.0,0.00041206,7]
[393839341,1763029850587,-500.0,0.00041206,7]
[393839342,1763029850596,-500.0,0.00041206,7]
[393839343,1763029850605,-1633.0,0.00041206,2]
[393839344,1763029850615,-898.0,0.00041206,2]
[393839345,1763029850624,-500.0,0.0004126,7]
[393839346,1763029850634,-500.0,0.0004126,7]
[393839347,1763029850643,-500.0,0.0004126,7]
[393839348,1763029850652,-500.0,0.0004126,7]
[393839349,1763029850661,-500.0,0.0004126,7]
[393839350,1763029850670,-500.0,0.0004126,7]
[393839351,1763029850679,-500.0,0.0004126,7]
[393839352,1763029850688,-500.0,0.0004126,7]
[393839353,1763029850697,-1633.0,0.0004126,2]
[393839354,1763029850705,-898.0,0.0004126,2]
[393839355,1763029850715,-500.0,0.00041315,7]
[393839356,1763029850724,-500.0,0.00041315,7]
[393839357,1763029850735,-500.0,0.00041315,7]
[393839358,1763029850747,-500.0,0.00041315,7]
[393839359,1763029850756,-167.49250094,0.00041315,7]
[393839360,1763029850765,-182.84582344,0.00041315,7]
[393839361,1763029850774,-500.0,0.00041315,7]
[393839362,1763029850783,-268.13823999,0.00041315,7]
[393839363,1763029850791,-1633.0,0.00041315,2]
[393839364,1763029850801,-898.0,0.00041315,2]
[393839365,1763029850810,-500.0,0.0004137,7]
[393839366,1763029850820,-500.0,0.0004137,7]
[393839367,1763029850830,-500.0,0.0004137,7]
[393839368,1763029850839,-500.0,0.0004137,7]
[393839369,1763029850854,-500.0,0.0004137,7]
[393839370,1763029850864,-1633.0,0.0004137,2]
[393839371,1763029850873,-898.0,0.0004137,2]
[393839372,1763029850882,-500.0,0.00041425,7]
[393839373,1763029850894,-500.0,0.00041425,7]
[393839374,1763029850904,-500.0,0.00041425,7]
[393839375,1763029850914,-500.0,0.00041425,7]
[393839376,1763029850925,-500.0,0.00041425,7]
[393839377,1763029850935,-1633.0,0.00041425,2]
[393839378,1763029850944,-779.56278048,0.00041425,2]
[393839379,1763029850980,-118.43721952,0.00041425,2]
[393839380,1763029850990,-195.20601148,0.0004148,7]
[393839381,1763030041936,1249.29,8.2e-05,2]
[393839382,1763030042374,1249.29,8.4e-05,2]
[393839383,1763030042516,1249.29,8.5e-05,2]
[393839384,1763030042855,1249.29,8.6e-05,2]
[393839385,1763030043373,1249.29,8.7e-05,2]
[393839386,1763030043565,1249.29,8.8e-05,2]
[393839387,1763030043781,1249.29,9e-05,2]
[393839388,1763030044077,1249.29,9.1e-05,2]
[393839389,1763030044624,1249.29,9.2e-05,2]
[393839390,1763030045007,1249.29,9.3e-05,2]
[393839391,1763030045309,1249.29,9.4e-05,2]
[393839392,1763030045624,1249.29,9.5e-05,2]
[393839393,1763030046071,1249.29,9.7e-05,2]
[393839394,1763030046427,1249.29,9.8e-05,2]
[393839395,1763030046806,1249.29,9.9e-05,2]
[393839396,1763030047158,1249.29,0.0001,2]
[393839397,1763030047448,1249.29,0.000101,2]
[393839398,1763030047765,1249.29,0.000102,2]
[393839399,1763030048037,1249.29,0.000104,2]
[393839400,1763030048392,1249.29,0.000105,2]
[393839401,1763030048708,1249.29,0.000106,2]
[393839402,1763030049032,1249.29,0.000107,2]
[393839403,1763030049333,1249.29,0.000108,2]
[393839404,1763030049628,1249.29,0.000109,2]
[393839405,1763030050053,1249.29,0.000111,2]
[393839406,1763030050340,1249.29,0.000112,2]
[393839407,1763030050653,1249.29,0.000113,2]
[393839408,1763030050938,1249.29,0.000114,2]
[393839409,1763030051257,1249.29,0.000115,2]
[393839410,1763030051541,1249.29,0.000117,2]
[393839411,1763030051827,1249.29,0.000118,2]
[393839412,1763030052107,1249.29,0.000119,2]
[393839413,1763030052469,1249.29,0.00012,2]
[393839414,1763030052758,1249.29,0.000121,2]
[393839415,1763030053052,1249.29,0.000122,2]
[393839416,1763030053479,1249.29,0.000124,2]
[393839417,1763030053791,1249.29,0.000125,2]
[393839418,1763030054098,1249.29,0.000126,2]
[393839419,1763030054378,1249.29,0.000127,2]
[393839420,1763030054700,1249.29,0.000128,2]
[393839421,1763030055032,1249.29,0.000129,2]
[393839422,1763030055340,1249.29,0.000131,2]
[393839423,1763030055636,1249.29,0.000132,2]
[393839424,1763030056574,1249.29,0.000133,2]
[393839425,1763030057069,1249.29,0.000134,2]
[393839426,1763030057528,1249.29,0.000135,2]
[393839427,1763030057853,1249.29,0.000136,2]
[393839428,1763030058205,1249.29,0.000138,2]
[393839429,1763030058627,1249.29,0.000139,2]
[393839430,1763030102175,156.15,8.2e-05,2]
[393839431,1763030102546,156.15,9.1e-05,2]
[393839432,1763030102939,156.15,9.9e-05,2]
[393839433,1763030103378,156.15,0.000107,2]
[393839434,1763030104314,156.15,0.000115,2]
[393839435,1763030104496,-308.67507155,0.00020643,2]
[393839436,1763030104519,-167.82076165,0.0002282,2]
[393839437,1763030104540,-2527.85542384,0.00023,2]
[393839438,1763030104809,156.15,0.000124,2]
[393839439,1763030105572,156.15,0.000132,2]
[393839440,1763030136364,300.0,0.000139,20]
[393839441,1763030147732,300.0,0.000139,20]
[393839442,1763030159561,300.0,0.000139,20]
[393839443,1763030164025,156.13,8.2e-05,2]
[393839444,1763030171166,300.0,0.000139,7]
[393839445,1763030188875,300.0,0.000139,7]
[393839446,1763030191350,300.0,0.000137,20]
[393839447,1763030201256,300.0,0.000139,7]
[393839448,1763030202260,300.0,0.000137,20]
[393839449,1763030211970,300.0,0.000139,2]
[393839450,1763030213872,300.0,0.000137,7]
[393839451,1763030232221,300.0,0.000137,2]
[393839452,1763030247604,300.0,0.000137,7]
[393839453,1763030258634,300.0,0.000137,2]
[393839454,1763030295335,160.65,0.000137,20]
[393839455,1763030305549,160.65,0.000137,7]
[393839456,1763030398445,2100.13,0.000195,3]
[393839457,1763030472026,151.0,0.00032876,120]
[393839459,1763030670093,169.0820095,0.00011747,2]
[393839461,1763030902701,240.78469,0.00013699,2]
[393839462,1763030950470,1015.60627387,0.00018151,2]
[393839681,1763031036950,5000.0,0.00018251,2]
[393839684,1763031038059,-2403.71035273,0.00018251,2]
[393839685,1763031038165,-24.27964727,0.00018251,2]
[393839686,1763031038175,-240.78469,0.00020187,2]
[393839687,1763031038184,-205.92052424,0.00020643,2]
[393839688,1763031038194,-1092.0,0.00022998,2]
[393839689,1763031038204,-300.0,0.00022999,2]
[393839690,1763031038215,-77.31455681,0.00022999,2]
[393839691,1763031040293,-0.01815234,0.00022999,2]
[393839692,1763031040323,-146.35290427,0.00022999,2]
[393839693,1763031040333,-111.86709573,0.00023,2]
[393839694,1763031040375,-2215.58800623,0.00023,2]
[393839703,1763031043368,-7883.45929748,0.00023,2]
[393839704,1763031044842,-439.09386824,0.00023,2]
[393839705,1763031044853,-283.46550654,0.00023,2]
[393839712,1763031509896,5468.75,0.00030137,120]
[393839713,1763031518111,200.0,0.00032,120]
[393839714,1763031536823,200.0,0.000321,120]
[393839715,1763031549833,200.0,0.000322,120]
[393839716,1763031562441,200.0,0.000323,120]
[393839717,1763031581131,200.0,0.000324,120]
[393839726,1763031652938,245.22652979,0.000327,120]
[393839727,1763031715833,200.0,0.000328,120]
[393839758,1763032238338,-206.02343305,0.00020643,2]
[393839759,1763032238348,-169.08391841,0.0002272,2]
[393839760,1763032238359,-359.17164173,0.00023,2]
[393839761,1763032238371,-6759.75881678,0.00023,2]
[393839762,1763032238381,-300.0,0.00023439,2]
[393839763,1763032238390,-2658.57167788,0.0002344,2]
[393839825,1763032246567,-286.09832212,0.0002344,2]
[393839826,1763032246576,-277.69289188,0.00023441,2]
[393839827,1763032254053,9110.65425919,0.00021,30]
[393839828,1763032254081,889.34574081,0.00021,30]
[393839829,1763032305255,1610.65425919,0.00021,30]
[393839830,1763032305279,2500.0,0.00021,30]
[393839831,1763032305304,2500.0,0.00021,30]
[393839832,1763032305329,2500.0,0.00021,30]
[393839833,1763032322688,511.4,0.0002,30]
[393839834,1763032322712,1118.93,0.0002,30]
[393839837,1763032375535,-889.34574081,0.00021,30]
[393839838,1763032376543,159.0,9e-07,2]
[393839839,1763032377603,159.0,9e-07,2]
[393839840,1763032378651,159.0,9e-07,2]
[393839841,1763032379858,159.0,9e-07,2]
[393839842,1763032380893,159.0,9e-07,2]
[393839843,1763032381967,159.0,9e-07,2]
[393839844,1763032383006,159.0,9e-07,2]
[393839845,1763032384066,159.0,9e-07,2]
[393839846,1763032385328,159.0,9e-07,2]
[393839847,1763032386377,159.0,9e-07,2]
[393839848,1763032453811,163.457233,0.0002262,120]
[393839849,1763032556928,10645.5175,0.000211,29]
[393839850,1763032612467,3209.0,0.00032877,120]
[393839851,1763032631921,205.4108577,0.00032876,120]
[393839864,1763033303306,2614.39609825,0.0002,2]
[393839865,1763033305372,12614.14534193,0.00017,2]
[393839869,1763033397392,-546.0256389,0.00020437,2]
[393839870,1763033399831,-521.44717394,0.00020437,2]
[393839872,1763033401940,-2270.87112741,0.00020437,2]
[393839913,1763033432672,-962.65644059,0.00020437,2]
[393839936,1763033438565,-698.99961916,0.00020437,2]
[393839938,1763033438574,-236.63886281,0.00020643,2]
[393839940,1763033438585,-300.0,0.00022618,2]
[393839942,1763033438595,-218.810869,0.00022619,2]
[393839944,1763033438605,-14.58955047,0.00022619,2]
[393839946,1763033438618,-749.22306325,0.00022619,2]
[393839949,1763033438633,-380.89502363,0.00022619,2]
[393839951,1763033438644,-717.12731951,0.00022619,2]
[393839953,1763033438655,-1214.53890209,0.00022619,2]
[393839961,1763033438725,-2136.88125509,0.00022619,2]
[393840162,1763033440849,-12369.21476761,0.00022619,2]
[393840163,1763033440859,-163.457233,0.0002262,2]
[393840164,1763033440868,-2248.36196207,0.00022798,2]
[393840165,1763033440878,-1214.92756562,0.00023043,2]
[393840166,1763033440887,-2248.36196207,0.00023116,2]
[393840167,1763033440897,-227.41260355,0.00023341,6]
[393840168,1763033440906,-209.40437684,0.00023428,2]
[393840169,1763033440915,-2893.55,0.0002344,2]
[393840170,1763033440925,-72.25360004,0.00023441,2]
[393840171,1763033440934,-173.20596123,0.00023441,2]
[393840172,1763033440944,-2893.55,0.00023441,2]
[393840173,1763033440953,-2893.55,0.00023441,2]
[393840175,1763033440962,-2893.55,0.00023441,2]
[393840177,1763033440971,-2893.55,0.00023441,2]
[393840179,1763033440980,-16970.64996796,0.00023442,2]
[393840186,1763033441021,-3e-08,0.00023442,2]
[393840322,1763033442275,-40971.08073413,0.00023442,2]
[393843659,1763033652341,-2745.88224661,0.00020233,2]
[393843660,1763033775737,17742.22,0.00032877,120]
[393843661,1763033967338,-210.95959994,0.00020437,2]
[393843662,1763033967360,-150.0,0.0002113,2]
[393843663,1763033967380,-2166.8958239,0.00021476,2]
[393843664,1763034042347,-167.82076165,0.00021261,2]
[393843665,1763034096789,6250.0,0.00030137,120]
[393843666,1763034363506,500.0,0.0002,20]
[393843669,1763034413213,5000.0,0.000201,2]
[393843670,1763034422461,3260.68,0.0003287,120]
[393843671,1763034597727,252.8981703,0.00032876,120]
[393843708,1763034631746,-150.0,0.0002054,2]
[393843710,1763034631755,-706.13838041,0.00020643,2]
[393843712,1763034631765,-210.3783413,0.00021288,2]
[393843714,1763034631774,-300.0,0.00021475,2]
[393843716,1763034631783,-522.0,0.00021475,2]
[393843718,1763034631793,-4726.1205643,0.00021476,2]
[393843720,1763034631802,-300.0,0.00021905,20]
[393843722,1763034631812,-300.0,0.00021905,20]
[393843724,1763034631822,-300.0,0.00021905,20]
[393843726,1763034631831,-300.0,0.00021905,20]
[393843728,1763034631840,-300.0,0.00021905,20]
[393843730,1763034631849,-500.0,0.00022057,2]
[393843732,1763034631858,-17264.9941412,0.00022058,2]
[393843734,1763034631867,-506.51964745,0.00022379,2]
[393843736,1763034631876,-856.277135,0.0002244,2]
[393843738,1763034631885,-177.0,0.0002254,2]
[393843740,1763034631895,-500.0,0.00022783,2]
[393843742,1763034631904,-500.0,0.000228,2]
[393843744,1763034631915,-425.24690506,0.000228,2]
[393843745,1763034631924,-500.0,0.00023024,2]
[393843747,1763034631933,-500.0,0.00023024,2]
[393843749,1763034631943,-500.0,0.00023024,2]
[393843751,1763034631952,-500.0,0.00023024,2]
[393843753,1763034631961,-500.0,0.00023024,2]
[393843755,1763034631971,-500.0,0.00023024,2]
[393843757,1763034631981,-398.05494001,0.00023024,2]
[393843759,1763034631990,-500.0,0.00023024,2]
[393843761,1763034632000,-500.0,0.00023024,2]
[393843763,1763034632010,-500.0,0.00023024,2]
[393843765,1763034632019,-500.0,0.00023024,2]
[393843767,1763034632028,-500.0,0.00023024,2]
[393843769,1763034632037,-502.14428453,0.00023024,2]
[393843771,1763034632046,-500.0,0.00023024,2]
[393843773,1763034632055,-500.0,0.00023024,2]
[393843775,1763034632063,-500.0,0.00023024,2]
[393843776,1763034632073,-500.0,0.00023024,2]
[393843778,1763034632082,-500.0,0.00023024,2]
[393843780,1763034632091,-500.0,0.00023024,2]
[393843782,1763034632100,-500.0,0.00023024,2]
[393843784,1763034632110,-500.0,0.00023024,2]
[393843786,1763034632119,-500.0,0.00023024,2]
[393843788,1763034632129,-500.0,0.00023024,2]
[393843790,1763034632139,-500.0,0.00023024,2]
[393843792,1763034632148,-297.39848686,0.00023024,2]
[393843794,1763034632157,-500.0,0.00023024,2]
[393843796,1763034632166,-500.0,0.00023024,2]
[393843798,1763034632176,-500.0,0.00023024,2]
[393843800,1763034632185,-500.0,0.00023024,2]
[393843802,1763034632194,-500.0,0.00023024,2]
[393843804,1763034632204,-500.0,0.00023024,2]
[393843806,1763034632214,-500.0,0.00023024,2]
[393843808,1763034632223,-500.0,0.00023024,2]
[393843810,1763034632232,-500.0,0.00023024,2]
[393843812,1763034632241,-232.003458,0.00023025,7]
[393843814,1763034632250,-232.003458,0.00023025,7]
[393843816,1763034632259,-232.003458,0.00023025,7]
[393843818,1763034632269,-232.003458,0.00023025,7]
[393843820,1763034632278,-232.003458,0.00023025,7]
[393843822,1763034632287,-232.003458,0.00023025,7]
[393843824,1763034632296,-232.003458,0.00023025,7]
[393843826,1763034632306,-232.003458,0.00023025,7]
[393843828,1763034632316,-151.0,0.00023026,2]
[393843830,1763034632326,-151.000003,0.00023026,2]
[393843832,1763034632335,-151.0,0.00023026,7]
[393843834,1763034632344,-244.894274,0.00023026,7]
[393843836,1763034632353,-536.2967583,0.00023026,2]
[393843838,1763034632362,-738.1571912,0.00023027,2]
[393843840,1763034632372,-11285.0164275,0.00023027,2]
[393843842,1763034632381,-152.697008,0.00023027,7]
[393843844,1763034632390,-232.003458,0.00023027,7]
[393843846,1763034632399,-232.003458,0.00023027,7]
[393843848,1763034632408,-232.003458,0.00023027,7]
[393843850,1763034632417,-232.003458,0.00023027,7]
[393843852,1763034632427,-232.003458,0.00023027,7]
[393843854,1763034632436,-232.003458,0.00023027,7]
[393843856,1763034632445,-232.003458,0.00023027,7]
[393843857,1763034632454,-232.003458,0.00023027,7]
[393843859,1763034632463,-500.0,0.00023073,2]
[393843861,1763034632474,-501.94832767,0.00023073,2]
[393843863,1763034632487,-3048.7578546,0.00023087,2]
[393843865,1763034632496,-2196.7979168,0.00023108,2]
[393843866,1763034632506,-232.003458,0.00023261,7]
[393843867,1763034632515,-232.003458,0.00023261,7]
[393843868,1763034632526,-232.003458,0.00023261,7]
[393843869,1763034632536,-232.003458,0.00023261,7]
[393843870,1763034632545,-341.28576547,0.00023348,2]
[393843871,1763034632554,-420.0,0.00023349,2]
[393843872,1763034632566,-209.40437684,0.00023426,2]
[393843873,1763034632575,-9836.92,0.00023439,2]
[393843874,1763034632585,-9836.92,0.0002344,2]
[393843875,1763034632595,-9836.92,0.00023441,2]
[393843876,1763034632604,-506.51910701,0.00023473,2]
[393843877,1763034632613,-500.0,0.00023473,2]
[393843878,1763034632623,-500.0,0.00023473,2]
[393843879,1763034632633,-502.08351042,0.00023473,2]
[393843880,1763034632642,-509.94832385,0.00023621,2]
[393843881,1763034632651,-504.16917821,0.00023738,2]
[393843882,1763034632660,-500.0,0.00023738,2]
[393843883,1763034632669,-217.15233878,0.00023974,2]
[393843884,1763034632679,-9836.92,0.00023999,2]
[393843885,1763034632687,-3387.7475044,0.00024,2]
[393843886,1763034632697,-12436.14676742,0.00024,2]
[393843887,1763034632706,-1000.0,0.00024021,2]
[393843888,1763034632715,-300.26745259,0.00024095,2]
[393843889,1763034632724,-225.18697532,0.00024522,2]
[393843890,1763034632735,-204.0,0.0002454,2]
[393843891,1763034632744,-160.0,0.00024624,2]
[393843892,1763034632753,-1089.69,0.00024638,3]
[393843893,1763034632762,-272.42,0.00024638,3]
[393843894,1763034632771,-817.29,0.00024638,3]
[393843895,1763034632781,-8717.5,0.00024648,3]
[393843896,1763034632790,-4358.75,0.00024648,3]
[393843897,1763034632801,-2179.37,0.00024648,3]
[393843898,1763034632812,-544.84,0.00024648,3]
[393843899,1763034632822,-151.0,0.00024658,7]
[393843900,1763034632832,-151.0,0.00024658,7]
[393843901,1763034632842,-151.0,0.00024658,7]
[393843902,1763034632851,-151.0,0.00024658,7]
[393843903,1763034632861,-2068.269725,0.00024658,7]
[393843904,1763034632870,-2068.269725,0.00024658,7]
[393843905,1763034632880,-2068.269725,0.00024658,7]
[393843906,1763034632889,-2068.269725,0.00024658,7]
[393843907,1763034632898,-2068.269725,0.00024658,7]
[393843908,1763034632908,-2068.269725,0.00024658,7]
[393843909,1763034632917,-2068.269725,0.00024658,7]
[393843910,1763034632926,-2068.269725,0.00024658,7]
[393843911,1763034632935,-2068.269725,0.00024658,7]
[393843912,1763034632944,-2068.269725,0.00024658,7]
[393843913,1763034632954,-2068.269725,0.00024658,7]
[393843914,1763034632963,-2068.269725,0.00024658,7]
[393843915,1763034632972,-2068.269725,0.00024658,7]
[393843916,1763034632982,-2068.269725,0.00024658,7]
[393843917,1763034632991,-2068.269725,0.00024658,7]
[393843918,1763034633000,-2068.269725,0.00024658,7]
[393843919,1763034633009,-2068.269725,0.00024658,7]
[393843920,1763034633019,-2068.269725,0.00024658,7]
[393843921,1763034633028,-2068.269725,0.00024658,7]
[393843922,1763034633037,-2068.26973024,0.00024658,7]
[393843923,1763034633047,-500.0,0.00024673,2]
[393843924,1763034633206,-500.0,0.00024673,2]
[393843925,1763034633215,-500.0,0.00024673,2]
[393843926,1763034633225,-500.0,0.00024673,2]
[393843927,1763034633234,-504.18477613,0.00024673,2]
[393843928,1763034633243,-509.88878154,0.00024673,2]
[393843929,1763034633252,-500.0,0.00024673,2]
[393843930,1763034633261,-500.0,0.00024673,2]
[393843931,1763034633270,-507.71057593,0.00024673,2]
[393843932,1763034633279,-4342.27,0.000247,7]
[393843933,1763034633288,-300.26745259,0.00024784,2]
[393843934,1763034633298,-9836.92,0.00024885,2]
[393843935,1763034633307,-15481.3258947,0.000249,2]
[393843936,1763034633317,-383.31,0.00024982,2]
[393843937,1763034633326,-10674.21951121,0.0002499,2]
[393843938,1763034633335,-233.51889341,0.0002507,2]
[393843939,1763034633344,-706.13838041,0.0002516,2]
[393843940,1763034633353,-260.0,0.00025171,2]
[393843941,1763034633362,-500.0,0.00025192,2]
[393843942,1763034633372,-504.75289529,0.00025221,2]
[393843943,1763034633381,-1015.62232191,0.00025221,2]
[393843944,1763034633391,-488.35097546,0.00025221,2]
[393843945,1763034633400,-1000.0,0.00025221,2]
[393843946,1763034633409,-1000.0,0.00025221,2]
[393843947,1763034633419,-587.0,0.00025386,2]
[393843948,1763034633428,-300.26745259,0.00025472,2]
[393843949,1763034633437,-242.15909246,0.00025618,2]